bitfinex/quotes_ETHUSD_20241223
["timestamp","ask_amount","ask_price","bid_price","bid_amount"]
[1734966643792,1.317,3290.2,3289.1,1.2768]
[1734966643947,1.317,3290.2,3285.2,1.26913022]
[1734966643948,3.04015,3289.4,3289.2,0.0614598]
[1734966644474,3.04034,3289.1,3287.8,1.2768]
[1734966644660,3.04018,3289.3,3289.0,0.61848193]
[1734966644861,3.04034,3289.1,3289.0,0.61848193]
[1734966645250,1.2399,3289.2,3287.8,1.2768]
[1734966645450,1.2399,3289.2,3287.9,0.06077813]
[1734966645750,3.03948,3290.1,3289.1,0.59872363]
[1734966645948,4.23969,3290.3,3289.1,0.59872363]
[1734966646179,3.03894,3290.7,3289.2,1.2899]
[1734966646400,3.03906,3290.5,3289.2,1.350258]
[1734966646695,3.03888,3290.7,3289.2,1.350258]
[1734966646851,3.342768,3290.7,3289.2,1.350258]
[1734966647470,0.303888,3290.7,3289.2,1.350258]
[1734966647672,3.03905,3290.5,3290.4,0.59896721]
[1734966647876,0.303888,3290.7,3289.2,1.2899]
[1734966648083,3.03884,3290.8,3290.4,0.6056657]
[1734966648304,1.4504,3291.2,3290.4,0.6056657]
[1734966648305,3.03858,3291.1,3290.4,0.22712464]
[1734966648508,3.03862,3291.0,3290.4,0.22712464]
[1734966648805,1.2004,3291.2,3290.4,0.22712464]
[1734966649110,3.03897,3290.6,3290.4,0.22712464]
[1734966649300,3.03868,3291.0,3290.4,0.22712464]
[1734966649470,3.342608,3290.9,3290.4,0.22712464]
[1734966649670,3.342608,3290.9,3290.5,0.0595149]
[1734966650008,0.303868,3290.9,3290.5,0.0595149]
[1734966650507,3.03849,3291.1,3290.4,0.22712464]
[1734966650716,3.03905,3290.5,3290.4,0.22712464]
[1734966651214,3.03887,3290.7,3290.4,0.22712464]
[1734966651512,0.00563109,3291.2,3290.5,0.0595149]
[1734966651681,1.216323,3291.7,3290.5,0.0595149]
[1734966651885,3.03805,3291.6,3290.5,0.0595149]
[1734966652573,3.03778,3291.9,3290.5,0.0595149]
[1734966652803,3.03761,3292.1,3290.8,1.2512]
[1734966653015,0.40608401,3293.1,3290.8,1.2512]
[1734966653016,3.03786,3291.8,3290.8,1.2512]
[1734966653196,3.03768,3292.0,3291.8,0.59816226]
[1734966653398,0.303768,3292.0,3290.9,0.0593858]
[1734966653601,1.216093,3292.5,3290.8,1.2512]
[1734966653602,3.03776,3291.9,3290.8,1.2512]
[1734966653827,3.03776,3291.9,3291.0,0.05935352]
[1734966654132,3.03776,3291.9,3291.1,0.05932126]
[1734966654491,1.216093,3292.5,3290.8,1.2512]
[1734966654689,0.1622177,3292.4,3290.9,0.0593858]
[1734966654886,3.03756,3292.2,3291.8,0.60394896]
[1734966655138,3.03779,3291.9,3290.8,1.2512]
[1734966655346,1.2117,3292.3,3290.8,1.2512]
[1734966655538,1.2117,3292.3,3290.3,3.0]
[1734966655539,3.03849,3291.1,3290.9,0.05543564]
[1734966655836,3.03825,3291.4,3290.9,0.05543564]
[1734966656053,3.03748,3292.2,3290.3,1.302]
[1734966656334,3.03803,3291.7,3291.0,0.61034479]
[1734966656493,1.2488,3292.0,3290.4,0.05580518]
[1734966656727,3.03897,3290.6,3289.9,2.79475773]
[1734966656922,0.0006,3291.0,3289.9,2.79475773]
[1734966657234,3.03876,3290.9,3290.5,0.59590849]
[1734966657392,3.467516,3290.9,3290.5,0.59590849]
[1734966657596,3.03877,3290.8,3290.5,0.59590849]
[1734966657797,3.03877,3290.8,3290.6,0.05590596]
[1734966658194,3.03895,3290.6,3290.5,0.59590849]
[1734966659509,0.428756,3290.9,3290.5,0.59590849]
[1734966659809,0.56830171,3292.4,3290.6,1.2354]
[1734966660018,3.28742,3292.3,3290.5,0.59590849]
[1734966660224,3.0382,3291.5,3290.2,3.15387258]
[1734966660396,3.0382,3291.5,3290.3,1.229]
[1734966660599,3.0382,3291.5,3291.4,0.5990956]
[1734966660600,3.03812,3291.5,3291.4,0.5990956]
[1734966660789,3.03757,3292.1,3290.3,1.229]
[1734966661103,0.303757,3292.0,3290.3,1.229]
[1734966661305,3.0379,3291.8,3290.3,1.229]
[1734966661539,3.03768,3292.0,3290.3,1.229]
[1734966661844,0.1622177,3292.4,3291.7,0.61334673]
[1734966662044,2.07601765,3293.6,3291.7,0.61334673]
[1734966662045,4.86223033,3293.6,3291.7,0.61334673]
[1734966662194,4.86223033,3293.6,3291.8,1.229]
[1734966662195,3.0366,3293.2,3291.8,1.229]
[1734966662394,1.215808,3293.3,3291.8,1.229]
[1734966662936,0.60076452,3293.3,3292.2,3.15387258]
[1734966663149,1.3318,3293.7,3292.3,1.2701]
[1734966663442,3.03646,3293.3,3293.2,5.97e-06]
[1734966663592,4.561006,3293.3,3293.2,5.97e-06]
[1734966664262,3.340106,3293.3,3293.2,5.97e-06]
[1734966665107,3.74619001,3293.3,3293.2,5.97e-06]
[1734966665347,3.74619001,3293.3,3291.9,1.2649]
[1734966665348,3.03785,3291.9,3290.5,3.15387258]
[1734966665490,3.0,3292.5,3290.6,1.261]
[1734966665841,3.0,3292.2,3290.7,0.05228729]
[1734966666014,1.13079501,3292.4,3290.7,0.05228729]
[1734966666196,1.13079501,3292.4,3290.1,1.261]
[1734966666197,3.03775,3291.9,3290.1,1.261]
[1734966666394,3.03868,3290.9,3290.8,0.05065145]
[1734966666633,3.03849,3291.1,3290.1,1.261]
[1734966666933,3.03925,3290.3,3290.2,0.05084513]
[1734966667240,3.03923,3290.3,3290.2,0.05084513]
[1734966667406,3.03868,3290.9,3289.7,1.55872299]
[1734966667745,0.424849,3291.0,3289.6,2.80329048]
[1734966668068,3.03861,3291.0,3290.8,0.61922123]
[1734966668248,3.03868,3290.9,3290.8,0.61922123]
[1734966668398,3.03852,3291.1,3290.8,0.61922123]
[1734966669039,3.03868,3290.9,3290.8,0.61922123]
[1734966669212,3.03868,3290.9,3290.8,0.44506526]
[1734966669424,0.5931,3291.6,3290.8,0.44506526]
[1734966669634,3.03741,3292.3,3290.9,1.261]
[1734966669850,0.3448279,3292.5,3290.9,1.261]
[1734966670165,3.03826,3291.4,3290.9,1.261]
[1734966670344,3.03754,3292.2,3290.9,1.261]
[1734966670518,3.03778,3291.9,3290.9,1.261]
[1734966670850,0.303754,3292.1,3290.9,1.261]
[1734966670851,0.65608401,3292.9,3291.3,0.62189947]
[1734966671057,3.03789,3291.8,3291.0,3.05058691]
[1734966671356,3.03766,3292.1,3291.0,3.0]
[1734966671557,3.03766,3292.1,3291.1,0.06266987]
[1734966671761,3.03767,3292.0,3291.1,0.79830889]
[1734966671961,3.03767,3292.0,3291.7,0.61777518]
[1734966672260,3.0375,3292.2,3291.7,0.61777518]
[1734966672560,3.0375,3292.2,3291.8,0.05125829]
[1734966672960,3.0375,3292.2,3291.7,0.61777518]
[1734966672961,3.03756,3292.2,3291.7,0.61777518]
[1734966673333,3.03756,3292.2,3291.8,0.05125829]
[1734966673761,0.7573,3292.7,3291.7,0.61777518]
[1734966673965,3.03785,3291.8,3291.7,0.61777518]
[1734966674327,3.03763,3292.1,3291.7,0.61777518]
[1734966674531,0.079,3292.7,3291.8,1.2658]
[1734966674731,0.3448279,3293.8,3292.0,3.0]
[1734966674929,0.27795217,3293.7,3292.5,3.0]
[1734966675165,1.91672411,3293.9,3292.1,1.88118726]
[1734966675316,2.75627262,3293.9,3292.1,1.2658]
[1734966675523,3.03724,3292.5,3292.1,1.2658]
[1734966675749,3.03724,3292.5,3292.4,0.60578014]
[1734966675953,3.87554851,3293.8,3292.4,0.60578014]
[1734966675954,3.03701,3292.8,3292.4,0.60578014]
[1734966676154,2.96127167,3292.8,3292.4,0.60578014]
[1734966676323,3.03674,3293.0,3292.4,0.60578014]
[1734966676732,0.38755485,3293.7,3292.4,0.60578014]
[1734966676947,3.03676,3293.0,3292.4,0.60578014]
[1734966677167,3.03681,3293.0,3292.4,0.60578014]
[1734966677675,3.04336722,3294.0,3292.6,1.357]
[1734966677820,0.93031181,3294.0,3293.1,1.357]
[1734966678015,0.93031181,3294.0,3293.2,0.4357]
[1734966678016,0.31750181,3294.0,3293.2,0.4357]
[1734966678321,3.39264066,3294.3,3293.9,0.62130672]
[1734966678519,1.23363607,3294.6,3293.9,0.62130672]
[1734966678965,3.03526,3294.6,3293.9,0.62130672]
[1734966679150,3.03567,3294.2,3293.9,0.62130672]
[1734966679358,3.03526,3294.6,3293.9,0.62130672]
[1734966679523,3.03575,3294.1,3294.0,2.649e-05]
[1734966679724,3.03575,3294.1,3293.9,0.62130672]
[1734966679919,0.303526,3294.5,3293.9,0.62130672]
[1734966680136,5.51805255,3294.9,3293.9,0.62130672]
[1734966680470,5.03296854,3294.9,3293.9,3.7751793]
[1734966680615,4.58983854,3294.9,3293.9,0.62130672]
[1734966680816,3.03558,3294.3,3294.0,0.0479444]
[1734966681057,0.303558,3294.2,3294.0,0.0479444]
[1734966681250,3.03594,3293.9,3293.4,1.3327]
[1734966681454,0.303558,3294.2,3292.5,1.3327]
[1734966681455,3.03603,3293.8,3292.5,1.3327]
[1734966681623,3.03603,3293.8,3293.5,0.04646755]
[1734966681824,0.303558,3294.2,3293.7,0.62386448]
[1734966682175,3.03497,3295.0,3293.7,1.95656448]
[1734966682476,3.03529,3294.6,3293.7,1.95656448]
[1734966682792,0.079,3295.1,3293.8,0.04490278]
[1734966683131,3.03591,3293.9,3293.8,0.04490278]
[1734966683268,3.0364,3293.4,3292.8,1.3327]
[1734966683484,0.30364,3293.3,3292.8,1.3327]
[1734966683637,3.03661,3293.2,3292.9,0.04519279]
[1734966683841,0.30364,3293.3,3292.9,0.04519279]
[1734966684190,0.5124645,3294.1,3293.0,0.04516056]
[1734966684391,0.5124645,3294.1,3293.1,0.59811866]
[1734966684545,3.5482045,3294.1,3293.1,0.59811866]
[1734966684947,3.03656,3293.2,3293.1,0.42989778]
[1734966685292,3.0374,3292.3,3292.0,1.3224]
[1734966685443,0.079,3293.3,3292.0,1.41047938]
[1734966685790,3.03637,3293.5,3292.2,0.61435274]
[1734966685993,3.079,3294.2,3292.3,1.3224]
[1734966686170,3.03602,3293.8,3292.3,1.3224]
[1734966686490,0.079,3294.2,3292.5,1.3224]
[1734966686675,0.079,3294.8,3293.0,1.3224]
[1734966686844,0.34499914,3295.2,3292.6,3.0]
[1734966686845,0.42399914,3295.2,3293.8,1.3224]
[1734966687189,1.81211991,3295.3,3293.9,0.04550599]
[1734966687389,4.84674991,3295.3,3294.0,1.2686]
[1734966687701,3.03508,3294.9,3294.0,1.2686]
[1734966687993,3.03437,3295.6,3294.0,1.2686]
[1734966688292,0.4334645,3295.6,3294.8,0.6173959]
[1734966688491,3.03499,3294.9,3294.8,0.6173959]
[1734966688795,3.0345,3295.5,3294.8,0.6173959]
[1734966688998,3.03454,3295.4,3294.8,0.6173959]
[1734966689298,3.03434,3295.6,3294.8,0.6173959]
[1734966689483,3.03499,3294.9,3294.8,0.6173959]
[1734966689644,3.338489,3294.9,3294.8,0.6173959]
[1734966689995,3.03522,3294.7,3293.8,1.2557]
[1734966690204,3.4334645,3294.6,3293.3,1.2557]
[1734966690495,0.303499,3294.9,3293.3,1.2557]
[1734966690661,3.0,3295.1,3294.4,1.2557]
[1734966690985,3.0,3295.1,3294.3,0.6116139]
[1734966690986,0.4334645,3295.1,3294.3,0.6116139]
[1734966691169,0.4334645,3295.1,3293.6,1.2557]
[1734966691170,3.0,3294.9,3293.6,1.2557]
[1734966691382,3.4334645,3294.9,3293.8,0.60948369]
[1734966691604,3.03582,3294.0,3293.6,1.2557]
[1734966691782,3.03528,3294.6,3294.3,0.61836971]
[1734966691941,0.303528,3294.5,3293.6,1.2557]
[1734966692146,3.03489,3295.1,3293.9,0.61443455]
[1734966692395,3.03468,3295.3,3294.0,1.3426]
[1734966692701,3.0,3294.6,3294.0,1.3426]
[1734966692902,0.4334645,3295.4,3294.0,1.3426]
[1734966693215,3.03503,3294.9,3294.0,1.3426]
[1734966693404,3.03526,3294.6,3294.5,0.62210053]
[1734966693582,0.303503,3294.8,3294.5,0.62210053]
[1734966693583,3.0352,3294.7,3294.5,0.62210053]
[1734966693764,0.303503,3294.8,3294.5,0.62210053]
[1734966694099,3.0,3295.3,3294.5,0.62210053]
[1734966694250,0.079,3295.6,3294.6,0.04472453]
[1734966694480,0.079,3295.6,3294.5,0.62210053]
[1734966694692,3.0,3295.1,3294.5,0.62210053]
[1734966695250,3.03477,3295.2,3294.6,1.2752]
[1734966695251,3.0,3295.2,3294.6,1.2752]
[1734966695448,0.603466,3295.1,3294.6,1.2752]
[1734966696190,2.77701303,3296.7,3294.6,1.2752]
[1734966696191,0.4334645,3295.3,3294.6,1.2752]
[1734966696393,3.03509,3294.8,3294.2,1.2752]
[1734966697171,3.03531,3294.6,3293.1,1.3825]
[1734966697378,6.03531,3294.6,3294.5,0.5935052]
[1734966698301,6.03531,3294.6,3294.5,0.18547037]
[1734966698470,6.68218745,3294.6,3294.5,0.18547037]
[1734966698655,3.03566,3294.2,3293.1,1.3825]
[1734966698851,3.03566,3294.2,3293.2,0.04311038]
[1734966699355,0.64687745,3294.6,3294.1,0.60981062]
[1734966699589,3.03516,3294.8,3294.2,1.3825]
[1734966699914,3.0,3295.1,3294.2,1.3825]
[1734966700110,0.4334645,3295.4,3294.3,0.04295754]
[1734966700257,3.0,3295.0,3294.3,0.04295754]
[1734966700595,3.0,3295.0,3294.2,1.3825]
[1734966700596,3.335,3294.9,3294.2,1.3825]
[1734966700755,3.0,3294.6,3294.2,1.3825]
[1734966701094,3.7334645,3294.9,3294.2,1.3825]
[1734966701303,3.0,3294.6,3294.2,1.3825]
[1734966701455,0.3771,3294.7,3293.7,1.3963]
[1734966701804,3.03574,3294.1,3293.3,1.3963]
[1734966702029,0.303574,3294.0,3293.3,1.3963]
[1734966702160,3.0,3294.6,3293.3,1.3963]
[1734966702363,6.03527,3294.6,3293.9,0.61650982]
[1734966702574,0.4334645,3294.6,3293.9,0.61650982]
[1734966702790,3.0,3294.5,3293.9,0.61650982]
[1734966703001,3.0347,3295.3,3294.1,1.3963]
[1734966703313,0.4334645,3295.3,3294.1,1.3963]
[1734966703604,3.03516,3294.8,3294.4,0.62277715]
[1734966704102,3.03525,3294.7,3294.4,0.62277715]
[1734966704404,0.303525,3294.6,3294.4,0.62277715]
[1734966704813,3.03536,3294.5,3294.4,0.62277715]
[1734966705108,6.03536,3294.5,3294.4,0.62277715]
[1734966705407,3.41118,3295.9,3294.5,1.4556]
[1734966705602,3.03431,3295.7,3294.5,1.4556]
[1734966705927,2.81519528,3295.9,3294.5,1.4556]
[1734966705928,0.303431,3295.6,3294.5,1.4556]
[1734966706113,2.43809528,3295.9,3294.5,1.4556]
[1734966706400,2.43809528,3295.9,3294.4,0.62277715]
[1734966706401,3.04392131,3296.1,3294.9,1.4556]
[1734966706609,0.65432336,3296.6,3294.9,3.0]
[1734966706908,3.03364,3296.4,3295.0,1.49817337]
[1734966707216,3.03364,3296.4,3295.8,0.60012105]
[1734966707407,0.34671045,3296.3,3295.8,0.60012105]
[1734966707616,2.44083769,3296.8,3295.9,1.3714]
[1734966707761,0.1683068,3297.1,3295.9,1.3714]
[1734966707962,0.65432336,3297.4,3295.9,3.0]
[1734966708165,0.65432336,3297.4,3296.1,1.3714]
[1734966708423,0.65432336,3297.4,3297.3,0.59914772]
[1734966708628,3.04392131,3298.0,3297.3,0.59914772]
[1734966708629,3.03223,3297.9,3297.3,0.59914772]
[1734966708776,0.30439213,3297.9,3297.3,0.59914772]
[1734966709100,0.73785663,3297.9,3297.3,0.59914772]
[1734966709306,3.03237,3297.8,3297.3,0.59914772]
[1734966709527,3.0,3297.7,3297.3,0.59914772]
[1734966709821,0.603237,3297.6,3297.3,0.59914772]
[1734966710029,1.214147,3298.7,3297.3,0.59914772]
[1734966710030,0.3771,3298.6,3297.3,0.59914772]
[1734966710320,0.3771,3298.6,3297.4,0.03970807]
[1734966710321,3.03185,3298.4,3297.4,0.03970807]
[1734966710495,0.4334645,3298.5,3297.5,1.4034]
[1734966710814,3.03151,3298.7,3297.6,0.03964379]
[1734966711024,0.4334645,3299.0,3298.3,0.61879689]
[1734966711025,0.4334645,3298.6,3298.3,0.61879689]
[1734966711179,3.03186,3298.4,3297.5,1.4034]
[1734966711378,0.303186,3298.3,3297.5,1.4034]
[1734966711829,3.03153,3298.7,3298.2,0.59683605]
[1734966711972,0.4334645,3299.0,3298.2,0.59683605]
[1734966712304,3.0,3298.7,3298.2,0.59683605]
[1734966712689,3.03095,3299.3,3298.3,1.3691]
[1734966712889,0.303095,3299.2,3298.3,1.3691]
[1734966713281,3.03154,3298.7,3297.9,1.3691]
[1734966713516,0.78747351,3299.1,3297.9,1.3691]
[1734966713848,0.78747351,3299.1,3298.6,0.60932214]
[1734966713849,0.4334645,3299.1,3298.6,0.60932214]
[1734966714302,3.0,3299.4,3298.6,0.60932214]
[1734966714504,0.603077,3299.3,3298.6,0.60932214]
[1734966714758,0.4334645,3299.5,3298.7,1.4396]
[1734966714922,3.03031,3300.0,3298.7,1.4396]
[1734966715250,0.4334645,3300.0,3298.7,1.4396]
[1734966715406,3.03077,3299.5,3298.7,1.4396]
[1734966715605,0.303077,3299.4,3298.7,1.4396]
[1734966715848,3.03046,3299.9,3298.7,1.4396]
[1734966716060,0.78747351,3300.0,3298.7,1.4396]
[1734966716061,0.4334645,3299.8,3298.7,1.4396]
[1734966716202,1.28554872,3300.3,3298.7,1.4396]
[1734966716562,0.4334645,3300.0,3299.3,0.59418937]
[1734966716856,0.1683068,3300.4,3298.9,1.4856]
[1734966717011,0.1683068,3300.4,3299.4,0.03592063]
[1734966717368,0.1683068,3300.4,3298.6,3.0]
[1734966717369,0.1683068,3300.4,3299.5,1.4856]
[1734966717722,0.1683068,3300.4,3299.9,0.59254846]
[1734966717912,0.1683068,3300.4,3300.0,0.03572803]
[1734966718110,0.32821461,3301.4,3300.0,0.03572803]
[1734966718111,0.4334645,3301.2,3300.1,1.4856]
[1734966718346,0.32821461,3301.4,3300.2,0.03532293]
[1734966718665,0.4334645,3302.0,3300.3,1.4223]
[1734966718806,3.4619645,3302.0,3300.3,1.4223]
[1734966719005,3.4619645,3302.0,3300.4,0.03416292]
[1734966719249,0.78747351,3302.0,3301.4,0.61205698]
[1734966719557,3.02885,3301.6,3300.3,1.4223]
[1734966719861,0.3771,3301.3,3300.3,1.4223]
[1734966720086,3.4627145,3301.2,3300.3,1.4223]
[1734966720272,3.4627145,3301.2,3301.0,0.59889073]
[1734966720469,0.43145423,3301.1,3299.2,1.43]
[1734966720672,0.4334645,3301.2,3299.2,1.43]
[1734966720673,3.4334645,3301.2,3299.2,1.43]
[1734966721004,3.4334645,3301.2,3300.4,0.62196235]
[1734966721005,3.0,3300.7,3300.4,0.62196235]
[1734966721226,0.3771,3300.9,3300.4,0.62196235]
[1734966721557,3.3771,3300.9,3300.4,0.62196235]
[1734966721757,3.3771,3300.9,3299.3,1.43]
[1734966721758,3.0,3300.8,3299.3,1.43]
[1734966721957,3.0,3300.5,3299.3,1.43]
[1734966722160,0.33771,3300.7,3299.4,0.03444737]
[1734966722161,3.0,3300.0,3299.4,0.03444737]
[1734966722437,3.0,3299.8,3299.4,0.03444737]
[1734966722669,3.0,3300.0,3299.5,0.59846573]
[1734966722997,3.8105645,3300.3,3299.5,0.59846573]
[1734966723198,3.0,3299.8,3297.2,1.3565]
[1734966723489,3.0,3299.8,3299.0,1.96981941]
[1734966723671,0.68405645,3300.2,3299.0,1.96981941]
[1734966723872,3.68405645,3300.2,3299.0,1.96981941]
[1734966724093,0.68405645,3300.2,3299.0,1.96981941]
[1734966724392,0.68405645,3300.2,3299.0,1.3583]
[1734966724539,3.03063,3299.7,3299.0,1.3583]
[1734966724745,3.303063,3299.6,3298.6,1.4016]
[1734966724976,0.303063,3299.6,3298.6,1.4016]
[1734966725247,6.52129258,3300.7,3299.6,1.3812]
[1734966725248,0.33771,3300.7,3299.6,1.3812]
[1734966725490,0.3771,3301.1,3299.6,1.3812]
[1734966725644,0.47472779,3301.3,3299.8,1.3812]
[1734966725850,3.02921,3301.2,3299.8,1.3812]
[1734966726165,0.3771,3302.0,3300.0,1.3812]
[1734966726371,0.47471292,3302.2,3300.0,1.3812]
[1734966726660,0.35029129,3302.1,3301.2,1.3812]
[1734966726864,3.02801,3302.5,3301.2,1.3812]
[1734966727064,0.47466328,3302.6,3301.3,0.0343733]
[1734966727065,3.0281,3302.4,3301.3,0.0343733]
[1734966727262,3.0281,3302.4,3301.2,1.3812]
[1734966727862,0.88035028,3302.6,3301.2,1.3812]
[1734966728069,3.0,3302.2,3301.2,1.3812]
[1734966728279,0.3,3302.1,3301.8,0.60538722]
[1734966728484,3.0,3302.0,3301.8,0.60538722]
[1734966728885,3.3284,3302.1,3301.8,0.60538722]
[1734966728886,3.3,3302.1,3301.8,0.60538722]
[1734966729085,0.3,3302.1,3301.8,0.60538722]
[1734966729491,0.405687,3303.1,3301.8,0.60538722]
[1734966729670,3.50214625,3303.0,3301.9,0.03351769]
[1734966729871,3.50214625,3303.0,3301.9,1.4034]
[1734966730079,3.02791,3302.6,3301.9,1.4034]
[1734966730529,0.75969601,3302.8,3301.9,1.4034]
[1734966730820,0.3787406,3302.7,3301.9,1.4034]
[1734966731168,3.02719,3303.4,3301.9,1.4034]
[1734966731373,0.7574068,3303.7,3301.9,1.4034]
[1734966731568,0.1683068,3303.7,3302.6,0.61876956]
[1734966731824,0.1683068,3303.7,3302.7,1.415]
[1734966731997,0.1683068,3303.7,3302.7,1.4482613]
[1734966733278,0.1683068,3303.7,3303.6,0.61609748]
[1734966733519,0.1683068,3303.7,3303.6,0.46207311]
[1734966733732,0.1683068,3303.7,3303.6,0.49322754]
[1734966734013,3.02563,3305.1,3303.6,0.49322754]
[1734966734224,0.405687,3304.6,3303.6,0.49322754]
[1734966734420,0.405687,3304.6,3303.5,1.5171]
[1734966734722,0.75969601,3304.6,3303.5,1.5171]
[1734966735020,0.47429669,3304.9,3304.3,0.61785862]
[1734966735537,0.47429669,3304.9,3304.3,2.06395862]
[1734966735704,3.02535,3305.4,3304.4,0.03150329]
[1734966735910,0.361445,3305.2,3304.4,0.03150329]
[1734966736106,0.83567622,3305.2,3304.4,0.03150329]
[1734966736305,1.23392723,3305.2,3304.4,0.03150329]
[1734966736509,0.75969601,3305.1,3304.3,2.06395862]
[1734966736746,3.78533601,3305.1,3304.3,2.06395862]
[1734966737112,0.75969601,3305.1,3304.3,2.06395862]
[1734966737441,3.49978122,3305.2,3304.3,2.06395862]
[1734966737442,0.47423122,3305.2,3304.3,2.06395862]
[1734966737643,0.35400901,3305.8,3304.3,1.4461]
[1734966737940,1.06328957,3306.1,3304.3,1.4461]
[1734966738151,0.35400901,3305.9,3305.0,0.5946018]
[1734966738645,1.06328957,3306.1,3305.0,0.5946018]
[1734966738941,3.0248,3306.0,3305.0,0.5946018]
[1734966739146,3.02491,3305.9,3305.0,0.5946018]
[1734966739343,0.35400901,3306.0,3305.0,0.5946018]
[1734966739638,0.44420086,3305.9,3305.1,1.4402]
[1734966739841,0.31520843,3306.5,3305.1,1.4402]
[1734966740045,0.31520843,3306.5,3305.3,1.4402]
[1734966740252,0.31520843,3306.5,3305.8,0.59338845]
[1734966740396,0.31520843,3306.5,3305.3,1.4402]
[1734966740397,3.02483,3306.0,3305.4,0.03699136]
[1734966740600,0.302483,3305.9,3305.3,1.4402]
[1734966740928,1.211274,3306.8,3305.8,0.60527927]
[1734966741143,0.6423661,3307.0,3305.9,1.5442]
[1734966741797,1.0480531,3307.0,3305.9,1.5442]
[1734966742138,3.429747,3306.9,3306.2,0.60734197]
[1734966742445,0.99637511,3307.0,3306.2,0.60734197]
[1734966742446,0.6423661,3307.0,3306.2,0.60734197]
[1734966742802,0.36661961,3306.9,3306.2,0.60734197]
[1734966743145,0.6423661,3307.0,3306.2,0.60734197]
[1734966743693,1.40206211,3307.0,3306.2,0.60734197]
[1734966744012,3.02411,3306.8,3306.2,0.60734197]
[1734966744342,3.0,3306.9,3305.9,1.5442]
[1734966744549,3.0,3306.4,3304.7,1.5442]
[1734966744841,3.0,3306.4,3304.6,3.15387258]
[1734966744842,0.3,3306.3,3305.7,1.4802]
[1734966745194,0.405687,3306.5,3305.7,1.4802]
[1734966745436,3.6423661,3307.0,3305.7,1.4802]
[1734966745640,3.0,3306.4,3306.2,0.59129907]
[1734966745842,3.0,3306.2,3304.2,1.4114]
[1734966746053,0.9954493,3306.1,3304.4,1.4114]
[1734966746345,0.9954493,3306.1,3305.7,0.61688646]
[1734966746736,3.0,3306.4,3305.7,0.61688646]
[1734966747249,3.0,3306.5,3305.7,0.61688646]
[1734966747431,0.1683068,3307.0,3305.8,1.5487]
[1734966748448,0.1683068,3307.0,3306.9,2.10959954]
[1734966749259,0.1683068,3307.0,3305.5,1.5095]
[1734966749423,0.52231581,3307.0,3305.5,1.5095]
[1734966749624,0.52231581,3307.0,3306.0,0.60265982]
[1734966749959,3.52231581,3307.0,3306.0,0.60265982]
[1734966750157,3.1683068,3307.0,3306.0,0.60265982]
[1734966750343,0.61921068,3306.9,3306.0,0.60265982]
[1734966750541,3.61921068,3306.9,3305.5,1.5095]
[1734966750861,0.61921068,3306.9,3305.5,1.5095]
[1734966751013,0.1683068,3307.0,3306.8,0.59774881]
[1734966751887,0.1683068,3307.0,3306.8,2.04394881]
[1734966753087,3.0,3306.8,3305.8,1.4462]
[1734966753385,0.7574068,3307.0,3306.1,0.60611572]
[1734966753564,0.1683068,3307.0,3306.1,0.60611572]
[1734966753753,0.1683068,3307.0,3306.2,1.5001]
[1734966754556,0.1683068,3307.0,3306.8,0.60385023]
[1734966755280,0.48513748,3307.0,3306.8,0.60385023]
[1734966755452,0.48513748,3307.0,3305.8,1.4466]
[1734966755453,3.201,3306.7,3305.8,1.4466]
[1734966755647,6.7901,3306.6,3306.4,0.59414885]
[1734966755849,3.5891,3306.6,3305.4,1.4466]
[1734966756054,0.66133,3306.5,3305.4,1.4466]
[1734966756290,3.0,3306.4,3306.3,0.59887827]
[1734966756851,13.783095,3306.4,3306.3,0.43044375]
[1734966757196,3.02527,3305.5,3303.7,1.5447]
[1734966757498,9.22636,3305.4,3304.9,0.61815976]
[1734966757798,3.0,3305.2,3303.7,1.5447]
[1734966757964,3.02581,3304.9,3303.7,1.5447]
[1734966758290,3.201,3304.3,3302.7,1.5067]
[1734966758496,3.201,3303.9,3302.7,1.5067]
[1734966758795,9.66579,3303.6,3302.7,1.5067]
[1734966759006,6.6387,3303.6,3303.3,0.60197058]
[1734966759210,3.0,3303.6,3301.7,1.5067]
[1734966759367,0.6201,3303.8,3303.3,1.5067]
[1734966759562,3.46333,3305.1,3303.3,1.5067]
[1734966759814,3.4377,3305.1,3303.3,1.5067]
[1734966760016,3.46333,3305.1,3303.3,1.5067]
[1734966760163,3.0,3305.0,3303.3,1.5067]
[1734966760363,3.0,3304.9,3303.3,1.5067]
[1734966760558,0.602572,3304.8,3303.3,1.5067]
[1734966760758,0.602572,3304.8,3303.4,0.05041206]
[1734966761070,3.4377,3305.1,3303.3,1.5067]
[1734966761399,0.981546,3305.3,3304.3,0.60288009]
[1734966761707,3.02417,3306.7,3304.3,0.60288009]
[1734966761708,3.46172,3306.9,3304.4,1.4648]
[1734966761893,0.32947085,3306.5,3304.4,1.4648]
[1734966762094,3.15387258,3306.4,3304.5,1.51455171]
[1734966762421,0.4377,3306.3,3304.5,1.51455171]
[1734966762729,0.4377,3306.9,3305.2,1.3994]
[1734966763392,0.1683068,3307.0,3305.2,1.3994]
[1734966763706,0.1683068,3307.0,3305.4,3.0]
[1734966763897,0.1683068,3307.0,3305.5,1.3562]
[1734966765407,0.1683068,3307.0,3305.7,4.3905]
[1734966765408,0.14345479,3307.0,3305.7,4.3905]
[1734966765614,0.14345479,3307.0,3306.9,1.3905]
[1734966765777,0.47380555,3308.4,3306.9,1.3905]
[1734966766181,1.210268,3309.5,3306.9,1.3905]
[1734966766525,0.47355315,3309.2,3306.9,1.3905]
[1734966766868,3.87528682,3309.2,3306.9,1.3905]
[1734966767067,3.0,3309.1,3306.9,1.3905]
[1734966767266,3.0,3308.5,3308.2,0.60092921]
[1734966767514,3.0,3308.7,3307.2,0.60244655]
[1734966767515,3.0,3308.2,3307.2,0.60244655]
[1734966767697,3.02279,3308.2,3307.2,0.60244655]
[1734966767883,0.73386268,3308.2,3306.9,1.3905]
[1734966768079,0.37985367,3308.2,3306.9,1.3905]
[1734966768309,3.0,3308.1,3307.0,0.61094369]
[1734966768515,0.64026937,3308.0,3306.9,1.3905]